Cogmind - Beta 14 @@@ ROGUE MODE // 2024.12.12 @ 18:03:57 Player: tarun Result: Destroyed by QI-C2F(z) with Makeshift Spear Performance ------------- Evolutions (1) 500 Regions Visited (5) 1000 Robots Destroyed (17) 85 Value Destroyed (363) 363 Prototype IDs (3) 60 Alien Tech Used (0) 0 Bonus (-48) -48 TOTAL SCORE: 1960 Bonus ------- Friendly Fire -48 Cogmind --------- Core Integrity 0/400 Matter 58/300 Energy 100/100 System Corruption 0% Temperature Cool (0) Movement Core (350) Ox6 Location -7/Zion Parts ------- > --- POWER (1) -------- (None) > --- PROPULSION (3) --- (None) > --- UTILITY (3) ------ Large Storage Unit Visual Processing Unit > --- WEAPON (2) ------- (None) > --- INVENTORY (15) --- Heavy Ion Engine Wheel Heat Sink Small Storage Unit Compact Battery (200) Recoil Stabilizer Authchip [R/Combat] Improved EM Shotgun Light Assault Rifle Rocket Launcher Welding Torch Mining Claw Self-destruct Interrupter (50) Peak State ------------ > --- POWER ------------ Heavy Ion Engine > --- PROPULSION ------- Light Treads Light Treads Wheel > --- UTILITY ---------- Large Storage Unit Visual Processing Unit Experimental Sensor Array > --- WEAPON ----------- Improved EM Shotgun Improved Light Cannon > --- INVENTORY -------- Heavy Ion Engine Wheel Heat Sink Small Storage Unit Compact Battery Recoil Stabilizer Authchip [R/Combat] Light Assault Rifle Improved Light Cannon Rocket Launcher Rocket Launcher Rocket Launcher Welding Torch Mining Claw Self-destruct Interrupter [Rating: 26] Favorites ----------- Power Heavy Ion Engine Engine Heavy Ion Engine Propulsion Light Treads Treads Light Treads Leg Aluminum Leg Wheel Wheel Utility Experimental Sensor Array Device Experimental Sensor Array Storage Large Storage Unit Processor Visual Processing Unit Weapon Improved EM Shotgun Energy Gun Improved EM Shotgun Ballistic Gun Light Assault Rifle Ballistic Cannon Improved Light Cannon Launcher Rocket Launcher Build | -11 -10 -10 -9 -9 -7 ------- Run | Yrd Mat Min Mat Min Zio Slots Evolved 2 | . . . 2 . . Power . | . . . . . . Propulsion 1 | . . . 1 . . Utility 1 | . . . 1 . . Weapon . | . . . . . . Parts Attached 21 | 6 . 5 6 . 4 Power 2 | 1 . . 1 . . Engine 2 | 1 . . 1 . . Core . | . . . . . . Reactor . | . . . . . . Propulsion 5 | 2 . 2 . . 1 Treads 2 | . . 2 . . . Leg 2 | 2 . . . . . Wheel 1 | . . . . . 1 Hover . | . . . . . . Flight . | . . . . . . Utility 4 | 1 . 1 2 . . Device 1 | . . 1 . . . Storage 2 | 1 . . 1 . . Processor 1 | . . . 1 . . Hackware . | . . . . . . Protection . | . . . . . . Artifact . | . . . . . . Weapon 10 | 2 . 2 3 . 3 Energy Gun 3 | . . 1 2 . . Energy Cannon . | . . . . . . Ballistic Gun 3 | 2 . 1 . . . Ballistic Cannon 2 | . . . 1 . 1 Launcher 2 | . . . . . 2 Special Weapon . | . . . . . . Impact Weapon . | . . . . . . Slashing Weapon . | . . . . . . Piercing Weapon . | . . . . . . Special Melee Weapon . | . . . . . . Unidentified Prototypes 3 | . . 1 2 . . Parts Lost 10 | . . . 1 . 9 Power 1 | . . . . . 1 Propulsion 3 | . . . . . 3 Utility 1 | . . . . . 1 Weapon 5 | . . . 1 . 4 Highest Loss Streak 7 | . . . 1 . 7 To Critical Strikes . | . . . . . . Average Slot Usage (%) 87 | . 85 88 80 88 94 Engine 11 | . 14 14 11 11 10 Treads 20 | . . 17 22 22 21 Leg 2 | . 28 10 . . . Wheel 3 | . . . . . 9 Device 9 | . . 6 11 11 9 Storage 12 | . 14 14 13 11 11 Processor 5 | . . . 1 11 11 Energy Gun 10 | . . 6 13 11 8 Ballistic Gun 7 | . 28 17 8 . . Ballistic Cannon 4 | . . . . 11 10 Peak Build Rating 26 | 6 6 15 24 24 26 Average Rating 18 | 3 6 10 18 24 23 On Entrance 12 | . 6 6 15 24 24 Naked Turns . | . . . . . . Heaviest Build 39 | 13 13 14 39 36 37 Greatest Support 40 | 20 20 40 40 40 40 Greatest Overweight (x) 6 | . . . . . 6 Average Overweight (x) . | . . . . . . Largest Inventory Capacity 15 | 8 8 8 15 15 15 Average Capacity 11 | 7 8 8 10 15 15 Most Carried 15 | 8 8 8 15 14 15 Average Carried 10 | 4 7 6 9 14 14 Final Capacity 15 | 8 8 8 15 15 15 Final Carried 14 | 6 8 6 14 14 13 Class Distribution -------------------- 100% | Mutant Dominant Class ---------------- Mutant | -10/Materials Mutant | -10/Mines Mutant | -9/Materials Mutant | -9/Mines Mutant | -7/Zion Resources | -11 -10 -10 -9 -9 -7 ----------- Run | Yrd Mat Min Mat Min Zio Matter Collected 405 | 179 . 123 103 . . Remotely . | . . . . . . Salvage Created 424 | . . 156 228 . 40 Parts 30 | . . 11 12 . 7 Haulers Intercepted 1 | . . . 1 . . Recyclers Shooed 2 | . . . 2 . . Parts Field Recycled . | . . . . . . Retrieved Matter . | . . . . . . Parts Self-Destructed . | . . . . . . Prevented . | . . . . . . Kills | -11 -10 -10 -9 -9 -7 ------- Run | Yrd Mat Min Mat Min Zio Combat Hostiles Destroyed 9 | . . 5 3 . 1 Guns 7 | . . 5 2 . . Cannons 1 | . . . . . 1 Classes Destroyed 7 | . . 2 3 . 2 Hauler 1 | . . . 1 . . Watcher 1 | . . . 1 . . Swarmer 3 | . . 3 . . . Grunt 3 | . . 2 1 . . Sentry 2 | . . . 2 . . Zionite 6 | . . . . . 6 Mutant 1 | . . . . . 1 Best Kill Streak 6 | . . 5 2 . 6 Combat Bots Only 5 | . . 5 1 . 1 Max Kills in Single Turn 1 | . . 1 1 . 1 Gunslinging . | . . . . . . Exploded . | . . . . . . Melee . | . . . . . . Uniques/NPCs Destroyed . | . . . . . . Combat | -11 -10 -10 -9 -9 -7 -------- Run | Yrd Mat Min Mat Min Zio Hostile Shots Fired 222 | . . 82 15 . 125 Missed 93 | . . 39 2 . 52 Damage Taken 1886 | . . 403 184 . 1299 Core 445 | . . 39 14 . 392 Absorbed by Shields . | . . . . . . Core Remaining (%) 92 | 100 . 84 . . . Volleys Fired 44 | . . 10 8 . 26 Largest 2 | . . 2 2 . 2 Hottest 85 | . . 60 85 . 78 Shots Fired 75 | . . 20 16 . 39 Gun 34 | . . 20 14 . . Cannon 28 | . . . 2 . 26 Launcher 13 | . . . . . 13 Special . | . . . . . . Kinetic 48 | . . 19 3 . 26 Thermal . | . . . . . . Explosive 13 | . . . . . 13 Electromagnetic 14 | . . 1 13 . . Robot Hit Streak 16 | . . 4 5 . 16 Robot Miss Streak 3 | . . 3 1 . 3 Penetration Max . | . . . . . . Secondary Targets 3 | . . 3 . . . Max Gunslinging Chain 1 | . . 1 . . . Shots Hit Robots 43 | . . 10 11 . 22 Core Hits 23 | . . 8 6 . 9 Critical Kills . | . . . . . . Critical Parts Destroyed . | . . . . . . Critical Strikes . | . . . . . . Melee Attacks . | . . . . . . Impact . | . . . . . . Slashing . | . . . . . . Piercing . | . . . . . . Sneak Attacks . | . . . . . . Combat Hostiles . | . . . . . . Follow-up Attacks . | . . . . . . Damage Inflicted 1070 | . . 133 284 . 653 Guns 301 | . . 133 168 . . Cannons 353 | . . . 20 . 333 Explosions 374 | . . . 54 . 320 Melee . | . . . . . . Ramming 42 | . . . 42 . . Kinetic 486 | . . 133 20 . 333 Thermal 54 | . . . 54 . . Explosive 320 | . . . . . 320 Electromagnetic 168 | . . . 168 . . Impact . | . . . . . . Slashing . | . . . . . . Piercing . | . . . . . . Highest Corruption . | . . . . . . Average Corruption . | . . . . . . Corruption Purged . | . . . . . . Corruption Blocked . | . . . . . . Overload Shots . | . . . . . . Overflow Damage 46 | . . . . . 46 Projectiles 5 | . . . . . 5 Explosions 41 | . . . . . 41 Melee . | . . . . . . Knockbacks 5 | . . . . . 5 Impact . | . . . . . . Kinetic 5 | . . . . . 5 Secondary . | . . . . . . Self-Inflicted Damage 280 | . . . . . 280 Shots 11 | . . . . . 11 Rammed 3 | . . . 3 . . Targets Rammed 4 | . . . 4 . . Kicked . | . . . . . . Crushed 1 | . . . 1 . . Highest Temperature 156 | . . 26 104 . 156 Average Temperature 52 | . . 13 46 . 60 Received Heat Transfer 405 | . . 81 69 . 255 Siege Activations . | . . . . . . Robots Corrupted 1 | . . . 1 . . Combat Hostiles 1 | . . . 1 . . Parts Fried 2 | . . . 2 . . Impact Corruptions . | . . . . . . Robots Melted . | . . . . . . Combat Hostiles . | . . . . . . Parts Melted . | . . . . . . Heat Transferred 50 | . . . 50 . . Parts Sabotaged . | . . . . . . Parts Stolen . | . . . . . . Parts Stripped . | . . . . . . Power Chain Reactions 1 | . . . 1 . . Alert | -11 -10 -10 -9 -9 -7 ------- Run | Yrd Mat Min Mat Min Zio Peak Influence 170 | . 15 170 85 13 . Initial 66 | . . 5 66 13 . Average 49 | . 5 103 41 13 . Maximum Alert Level . | . . . . . . Low Security (%) 100 | 100 100 100 100 100 . Level 1 . | . . . . . . Level 2 . | . . . . . . Level 3 . | . . . . . . Level 4 . | . . . . . . Level 5 . | . . . . . . High Security . | . . . . . . Max Security . | . . . . . . Squads Dispatched . | . . . . . . Investigation . | . . . . . . Extermination . | . . . . . . Reinforcement . | . . . . . . Assault . | . . . . . . Garrison . | . . . . . . Intercept . | . . . . . . Searches Triggered . | . . . . . . Construction Impeded . | . . . . . . Haulers Reinforced . | . . . . . . Active Scanning Responses . | . . . . . . Cargo Convoy Interrupts . | . . . . . . Stealth | -11 -10 -10 -9 -9 -7 --------- Run | Yrd Mat Min Mat Min Zio Distress Signals 1 | . . . 1 . . Communications Jammed . | . . . . . . Distress Signals . | . . . . . . Times Spotted 26 | . 1 8 4 . 13 Peak Tracking Total 9 | . 1 5 1 . 9 Tactical Retreats 2 | . . 2 . . . Traps | -11 -10 -10 -9 -9 -7 ------- Run | Yrd Mat Min Mat Min Zio Traps Triggered . | . . . . . . Indirectly . | . . . . . . Trap Hack Attempts . | . . . . . . Triggered . | . . . . . . Disarmed . | . . . . . . Reprogrammed . | . . . . . . Reused . | . . . . . . Traps Extracted . | . . . . . . Installed . | . . . . . . Triggered . | . . . . . . Machines | -11 -10 -10 -9 -9 -7 ---------- Run | Yrd Mat Min Mat Min Zio Machines Disabled 1 | . . . . . 1 Max in Single Turn 1 | . . . . . 1 Machines Repaired . | . . . . . . Machines Dismantled . | . . . . . . Machines Sabotaged . | . . . . . . Overloaded Fab Kills . | . . . . . . Hacking | -11 -10 -10 -9 -9 -7 --------- Run | Yrd Mat Min Mat Min Zio Machines Accessed . | . . . . . . Terminals . | . . . . . . Fabricators . | . . . . . . Repair Stations . | . . . . . . Recycling Units . | . . . . . . Scanalyzers . | . . . . . . Garrison Access . | . . . . . . Total Hacks . | . . . . . . Successful . | . . . . . . Failed . | . . . . . . Catastrophic . | . . . . . . Database Lockouts . | . . . . . . Manual 2 | . . . . . 2 Terminals . | . . . . . . Fabricators . | . . . . . . Repair Stations . | . . . . . . Recycling Units . | . . . . . . Scanalyzers . | . . . . . . Garrison Access . | . . . . . . Terminal Hacks . | . . . . . . Fabricator Hacks . | . . . . . . Repair Station Hacks . | . . . . . . Recycling Unit Hacks . | . . . . . . Scanalyzer . | . . . . . . Garrison Access Hacks . | . . . . . . Unauthorized Hacks . | . . . . . . Terminals . | . . . . . . Fabricators . | . . . . . . Repair Stations . | . . . . . . Recycling Units . | . . . . . . Scanalyzers . | . . . . . . Garrison Access . | . . . . . . Data Cores Recovered . | . . . . . . Used . | . . . . . . Hacking Detections . | . . . . . . Full Trace Events . | . . . . . . Feedback Events . | . . . . . . Feedback Blocked . | . . . . . . Robot Schematics Acquired 3 | . . . . . 3 Robots Built . | . . . . . . Authchips . | . . . . . . Time . | . . . . . . Total Robot Build Rating . | . . . . . . Part Schematics Acquired 15 | . . . . . 15 Parts Built . | . . . . . . Authchips . | . . . . . . Time . | . . . . . . Total Part Build Rating . | . . . . . . Parts Repaired . | . . . . . . Time . | . . . . . . Parts Recycled . | . . . . . . Recycled Matter . | . . . . . . Retrieved Matter . | . . . . . . Retrieved Components . | . . . . . . Parts Scanalyzed . | . . . . . . Part Schematics Acquired . | . . . . . . Parts Damaged . | . . . . . . Bothacking | -11 -10 -10 -9 -9 -7 ------------ Run | Yrd Mat Min Mat Min Zio Used RIF Installer . | . . . . . . Robots Hacked . | . . . . . . Non-combat . | . . . . . . Combat . | . . . . . . Robot Hacks Applied . | . . . . . . Relay Couplers Released . | . . . . . . Fabnet Peak Effective % . | . . . . . . Robots Rewired . | . . . . . . Allies Hacked . | . . . . . . Hacks Repelled . | . . . . . . Allies | -11 -10 -10 -9 -9 -7 -------- Run | Yrd Mat Min Mat Min Zio Total Allies 2 | . . . . 2 . Largest Group 2 | . . . . 2 2 Highest-Rated Group 41 | . . . . 41 41 Highest-Rated Ally 31 | . . . . 31 31 Total Orders . | . . . . . . Ally Attacks . | . . . . . . Total Damage . | . . . . . . Kills . | . . . . . . Allies Corrupted . | . . . . . . Allies Melted . | . . . . . . Intel | -11 -10 -10 -9 -9 -7 ------- Run | Yrd Mat Min Mat Min Zio Robot Analysis Total . | . . . . . . Derelict Logs Recovered 3 | . . 1 . . 2 Drone Launches . | . . . . . . Drone Recoveries . | . . . . . . Exploration | -11 -10 -10 -9 -9 -7 ------------- Run | Yrd Mat Min Mat Min Zio Turns Passed 2347 | 79 72 325 931 95 845 Spaces Moved 1235 | 57 59 191 391 60 477 Core 15 | 9 . . . . 6 Treads 1030 | . . 108 391 60 471 Legs 190 | 48 59 83 . . . Wheels . | . . . . . . Hover . | . . . . . . Flight . | . . . . . . Fastest Speed 50 | 50 120 120 160 160 160 Average Speed 153 | 108 120 142 160 160 162 Slowest Speed 350 | 120 120 160 160 160 350 Overloaded Moves . | . . . . . . Propulsion Burnouts . | . . . . . . Robots Hopped . | . . . . . . Cave-ins Triggered . | . . . . . . Exploration Rate (%) 30 | 5 15 49 29 27 57 Regions Visited 5 Branch Regions 3 Pre-discovered Areas 1 | . . . . . 1 Known Exits Taken 1 | . . . 1 . . Unknown Exits Taken 4 | 1 1 1 . 1 . Scrap Searched . | . . . . . . Spaces Dug 24 | . . . . . 24 Terrain Destroyed 35 | . . . 5 . 30 Melee . | . . . . . . Projectile 1 | . . . . . 1 AOE 34 | . . . 5 . 29 Terrain Rammed . | . . . . . . Walls Destroyed . | . . . . . . Machines Disabled . | . . . . . . Actions | -11 -10 -10 -9 -9 -7 --------- Run | Yrd Mat Min Mat Min Zio Total 1607 | 74 60 227 678 59 509 Wait 267 | . . 16 251 . . Move 1230 | 56 58 190 390 59 477 Hop . | . . . . . . Pick Up 32 | 12 2 2 14 . 2 Fast Attach 2 | . . 1 1 . . Attach 14 | 6 . 4 1 . 3 Detach . | . . . . . . Swap 5 | . . . 4 . 1 Drop 9 | . . 4 5 . . Fire 44 | . . 10 8 . 26 Melee . | . . . . . . Ram . | . . . . . . Kick . | . . . . . . Crush 4 | . . . 4 . . Escape Stasis . | . . . . . . Rewire . | . . . . . . Trap . | . . . . . . Miscellaneous . | . . . . . . Route ------- -11/Scrapyard -10/Materials -10/Mines -9/Materials (discovered 4 exits: Mat x3 / *Min) -9/Mines -7/Zion History --------- Turn | Location | Event 3 | -11/Scrapyard | Discovered new exit (range 15) 80 | -11/Scrapyard | Entered Materials 146 | -10/Materials | Discovered new exit (range 6) 152 | -10/Materials | Entered Mines 157 | -10/Mines | Learned 8 Materials zone layouts 177 | -10/Mines | Met a Derelict bent on vengeance 302 | -10/Mines | Build established: Mutant 317 | -10/Mines | Found a damaged Exp. Sensor Array with a note attached 320 | -10/Mines | Found Prototype Device 320 | -10/Mines | Identified Exp. Sensor Array 450 | -10/Mines | Discovered new exit (range 9) 477 | -10/Mines | Entered Materials 477 | -9/Materials | Evolved 2 slots: Propulsion x1, Utility x1 478 | -9/Materials | Identified exit to Materials 478 | -9/Materials | Identified exit to Mines 1408 | -9/Materials | Entered Mines 1480 | -9/Mines | A Derelict revealed a hidden shortcut to a safe place 1503 | -9/Mines | Entered Zion 1503 | -7/Zion | Accompanied by 2 allies 1553 | -7/Zion | Led the pair of lost Derelicts to a safe place 1696 | -7/Zion | Received a hallucinogenic algorithm 1801 | -7/Zion | Learned Factory emergency access door positions 2173 | -7/Zion | Attacked by Zionites 2327 | -7/Zion | Core integrity fell below 50% 2344 | -7/Zion | Core integrity fell below 20% 2348 | -7/Zion | Destroyed by QI-C2F(z) with Makeshift Spear Last Messages --------------- 02304_ Lgt. Treads destroyed. 02305_ O9-SN4(z) knocked back. 02307_ O9-SN4(z) destroyed. 02310_ Lgt. Treads destroyed. 02315_ Hvy. Ion Engine destroyed. 02318_ Destroyed Mak. Power Source. 02321_ 19-WOF(z) destroyed. [Achievement: Let's See Who's Tougher] 02324_ CW-9G4(z) knocked back. 02327_ CW-9G4(z) destroyed. 02327_ Imp. Light Cannon destroyed. 02327_ Destroyed Imp. Light Cannon. 02327_ Rocket Launcher destroyed. 02327_ Destroyed Rocket Launcher. 02328_ QI-C2F(z) pulls a Mak. Spear out of the Twisted Machinery. 02328_ BW-023(z) pulls a Mak. Laser out of the Twisted Machinery. 02344_ Critical hit (Burn: +37). 02348_ BW-023(z) overheating. Map ----- +----------------------------------------------------+ | ?????????????????????????????????????????????????? | | ?????????????????????????????????????????????????? | | ??????????????######?????????????????????????????? | | ?????????????##!"#!##????????????????????????????? | | ?????????????#!! !!!#????????????????????????????? | | ?????????????#!!!!!#?????????????????????????????? | | ?????????????##"!!##?????????????????????????????? | | ?????????????## # "##????????????????????????????? | | ?????????????#" " #"#????????????????????????????? | | ???????###???# # ##???????????????????????????? | | ??????##"##### "" ####??"#"?"?"???????????????? | | ???####"""""#""""" #"###""""""""??????????????? | | ??##""#"" """" ##"""" "#??????????????? | | ?##""""" """" ""#?????????????? | | ##""" c " " """ """"""??????????? | | #""" % "" ??????????? | | #"" " ??????????? | | = = " ??????????? | | " """ * = " "??????????? | | "" ""#" " = z " "??????????? | | #""" """""""" "" = = "" ""?????????? | | """" """""""""""" * "?????????? | | " "" """"""""??????????? | | """"""""""?????????????? | | """"""""""""""" z "" ""##???????????????? | | """""""""#"""""" @"" """"??????????????? | | ""#"##"#####"z""" "" """"?????????????? | | "#######""""""""" "" """"????????????? | | ##?????"" "" """"???????????? | | ???????"" z g ?????????? | | ???????#" "" ?????????? | | ????????" """" " ?????????? | | ????????" """" " ?????????? | | ???????"" """" " """""" ??????????? | | ???????" """ "" """"""" """""??????????? | | ???????"" """ "" """"" "z"?????????????? | | ??????""" """ " """ ""#?????????????? | | ??????"" """ "" """"""??????????????? | | ??????#"" """ """""#"#??????????????? | | ??????#"" """ "" """#"?????????????????? | | ??????#"" " " """#??????????????????? | | ???????#" " " ""##??????????????????? | | ?????"""" """"" " """""##???????????????????? | | ????" """"" #""""#????????????????????? | | ??"" """" #""###????????????????????? | | ?? """" #"""#?????????????????????? | | ?? """ """##?????????????????????? | | ??""" """ "" #"""##????????????????????? | | ????? """""" "" """""#????????????????????? | | ?????? "?"#"""""" """"##????????????????????? | +----------------------------------------------------+ Best States ------------- Heat Dissipation 28 Energy Generation 14 Energy Capacity 280 Matter Stores 300 Matter Capacity 300 Sight Range 18 Robot Scan Range 20 Terrain Scan Density 10 Evasion (%) 55 Recoil Reduction 2 Authchip Count 1 Item Schematics ----------------- Recalibrator | -7/Zion | Archive Adv. Shield Generator | -7/Zion | Archive Flak Gun | -7/Zion | Archive Hvy. Pick | -7/Zion | Archive Imp. Field Recycling Unit | -7/Zion | Archive Lyr. Medium Armor Plating | -7/Zion | Archive Energy Filter | -7/Zion | Archive Thermic Laser | -7/Zion | Archive Adv. ECM Suite | -7/Zion | Archive Imp. Shock Absorption System | -7/Zion | Archive Matter Compressor | -7/Zion | Archive Plasma Cannon | -7/Zion | Archive Hvy. Missile Launcher | -7/Zion | Archive Imp. Actuator Array | -7/Zion | Archive Cloaking Device | -7/Zion | Archive Robot Schematics ------------------ S-27 Virus | -7/Zion | Archive R-06 Scavenger | -7/Zion | Archive B-48 Gladiator | -7/Zion | Archive Fabricated ------------ Nothing Alien Tech Used ----------------- None Achievements -------------- Let's See Who's Tougher Power Corrupts Robot Respite Tourist Challenges ------------ None Game ------ Seed OvertunedBarrageJammer Manual? 0 Play Time 01:04:39 Cumulative 6.7 hours Start 2024.12.01 @ 14:48:49 End 2024.12.12 @ 18:03:57 Sessions 3 Manual Loads 0 Difficulty Rogue Special Mode None Game No. 7 Rogue 7 Adventurer 0 Explorer 0 Win Type - Total 0 Types 0/0/0/0/0/0/0/0/0 Lore% 2 Gallery% 6 Achievement% 7 Wizard Run 0 Options --------- Layout 1 ASCII 0 Keyboard 0 Movement Mouse Keybinds 0 Fullscreen 1 Font 24/Smallcaps Map View 50x35 Zoom Use 0% Tactical HUD 1 Map Filters NONE Filters NONE Steam 0 RUN: b3cc7d03-3451-4aa2-ad13-d9a526300ac1